[Event "47th Rilton Cup 2017"]
[Site "?"]
[Date "2018.01.04"]
[Round "8"]
[White "Alekseenko, Kirill"]
[Black "Krasenkow, Michal"]
[Result "1-0"]
[ECO "B24"]
[WhiteElo "2590"]
[BlackElo "2671"]
[PlyCount "99"]
[EventDate "2018.??.??"]
[EventType "swiss"]
[EventCountry "SWE"]
[SourceTitle "Stockholm"]
[TimeControl "40/5400+30:1800+30"]
[WhiteClock "0:15:58"]
[BlackClock "0:26:21"]

1. e4 {[%emt 0:00:00]} c5 {[%emt 0:00:00]} 2. Nc3 {[%emt 0:00:24]} Nc6 {[%emt 0:00:21]} 3. Bb5 {[%emt 0:00:26]} Nd4 {[%emt 0:00:39]} 4. Nf3 {[%emt 0:00:29]} e6 {[%emt 0:00:46]} 5. O-O {[%emt 0:00:45]} a6 {[%emt 0:00:47]} 6. Bd3 {[%emt 0:00:31]} Nxf3+ {[%emt 0:00:15]} 7. Qxf3 {[%emt 0:00:10]} Bd6 {[%emt 0:00:10]} 8. Be2 {[%emt 0:17:54]} Qc7 {[%emt 0:05:58]} 9. Qh3 {[%emt 0:01:05]} Ne7 {[%emt 0:05:25]} 10. d3 {[%emt 0:01:52]} Ng6 {[%emt 0:02:56]} 11. g3 {[%emt 0:01:15]} h5 {[%emt 0:03:28]} 12. f4 {[%emt 0:09:22]} h4 {[%emt 0:00:14]} 13. Qg2 {[%emt 0:04:03]} hxg3 {[%emt 0:00:53]} 14. hxg3 {[%emt 0:00:14]} Be7 {[%emt 0:00:47]} 15. Be3 {[%emt 0:03:58]} b6 {[%emt 0:11:30]} 16. e5 {[%emt 0:04:15]} Bb7 {[%emt 0:01:05]} 17. Bf3 {[%emt 0:00:09]} O-O-O {[%emt 0:01:19]} 18. d4 {[%emt 0:01:54]} cxd4 {[%emt 0:05:36]} 19. Bxd4 {[%emt 0:00:45]} Rh6 {[%emt 0:10:19]} 20. f5 {[%emt 0:04:29]} Nxe5 {[%emt 0:12:19]} 21. Bxb7+ {[%emt 0:02:50]} Kb8 {[%emt 0:00:01]} 22. Bxa6 {[%emt 0:02:10]} Bc5 {[%emt 0:04:11]} 23. Nb5 {[%emt 0:08:22]} Bxd4+ {[%emt 0:01:56]} 24. Nxd4 {[%emt 0:00:46]} Rdh8 {[%emt 0:00:37]} 25. fxe6 {[%emt 0:04:39]} fxe6 {[%emt 0:02:06]} 26. Rae1 {[%emt 0:06:57]} Ng4 {[%emt 0:03:29]} 27. Rf4 {[%emt 0:00:34]} Nf6 {[%emt 0:00:55]} 28. Rf3 {[%emt 0:10:05]} Qc5 {[%emt 0:05:22]} 29. c3 {[%emt 0:03:21]} Qd5 {[%emt 0:04:46]} 30. Ref1 {[%emt 0:02:44]} e5 {[%emt 0:09:50]} 31. Nf5 {[%emt 0:00:04]} Rh2 {[%emt 0:01:10]} 32. Qxh2 {[%emt 0:00:17]} Rxh2 {[%emt 0:00:05]} 33. Kxh2 {[%emt 0:00:03]} e4 {[%emt 0:00:07]} 34. Rf4 {[%emt 0:00:45]} Qxa2 {[%emt 0:01:08]} 35. Nxg7 {[%emt 0:00:54]} Nd5 {[%emt 0:00:59]} 36. Rf8+ {[%emt 0:01:09]} Ka7 {[%emt 0:00:45]} 37. Be2 {[%emt 0:01:21]} Qxb2 {[%emt 0:00:22]} 38. R1f2 {[%emt 0:00:42]} Nxc3 {[%emt 0:02:12]} 39. Bf1 {[%emt 0:02:12]} Qc1 {[%emt 0:01:09]} 40. R8f7 {[%emt 0:02:31]} b5 {[%emt 0:02:27]} 41. Rxd7+ {[%emt 0:04:35]} Kb6 {[%emt 0:00:03]} 42. Rf6+ {[%emt 0:02:51]} Ka5 {[%emt 0:00:07]} 43. Ne6 {[%emt 0:01:14]} Qb2+ {[%emt 0:08:50]} 44. Kh3 {[%emt 0:00:35]} Nd5 {[%emt 0:02:07]} 45. Rxd5 {[%emt 0:01:14]} Qxf6 {[%emt 0:00:10]} 46. Rxb5+ {[%emt 0:00:10]} Ka4 {[%emt 0:00:05]} 47. Nf4 {[%emt 0:00:09]} e3 {[%emt 0:06:09]} 48. Be2 {[%emt 0:00:12]} Qe7 {[%emt 0:01:48]} 49. g4 {[%emt 0:01:06]} Qe4 {[%emt 0:00:49]} 50. Kg3 {[%emt 0:00:07]} 1-0

[Event "47th Rilton Cup 2017"]
[Site "?"]
[Date "2018.01.04"]
[Round "8"]
[White "Bellia, Fabrizio"]
[Black "Hillarp Persson, Tiger"]
[Result "0-1"]
[ECO "B30"]
[WhiteElo "2435"]
[BlackElo "2537"]
[Annotator "RC"]
[PlyCount "66"]
[EventDate "2018.??.??"]
[EventType "swiss"]
[EventCountry "SWE"]
[SourceTitle "Stockholm"]
[TimeControl "40/5400+30:1800+30"]
[WhiteClock "0:02:03"]
[BlackClock "0:01:37"]

1. e4 {[%emt 0:00:00]} c5 {[%emt 0:00:00]} 2. Nf3 {[%emt 0:00:00]} Nc6 {[%emt 0:00:17]} 3. Bb5 {[%emt 0:00:02]} Nf6 {[%emt 0:00:13]} 4. e5 {[%emt 0:01:27]} Nd5 {[%emt 0:00:10]} 5. c3 {[%emt 0:05:15]} Qc7 {[%emt 0:05:17]} 6. Qe2 {[%emt 0:04:46]} g5 {[%emt 0:23:02]} 7. Qe4 {[%emt 0:11:09]} g4 {[%emt 0:00:36]} 8. Qxd5 {[%emt 0:09:19]} gxf3 {[%emt 0:01:03]} 9. Qxf3 {[%emt 0:00:22]} Nxe5 {[%emt 0:00:54]} 10. Qg3 {[%emt 0:01:31]} a6 11. d4 {[%emt 0:05:35]} axb5 {[%emt 0:04:17]} 12. dxe5 {[%emt 0:01:36]} Ra6 {[%emt 0:00:29]} 13. Bf4 {[%emt 0:05:04]} Rg6 {[%emt 0:01:34]} 14. Qe3 {[%emt 0:02:49]} Rxg2 {[%emt 0:03:01]} 15. Nd2 {[%emt 0:00:20]} Qc6 {[%emt 0:04:02]} 16. O-O-O {[%emt 0:05:02]} b6 {[%emt 0:00:35]} 17. Ne4 {[%emt 0:02:11]} Bb7 {[%emt 0:10:17]} 18. f3 {[%emt 0:17:33]} Qe6 {[%emt 0:10:40]} 19. Rhg1 {[%emt 0:05:38]} Rg6 {[%emt 0:09:56]} 20. Rge1 {[%emt 0:09:26]} Bc6 {[%emt 0:02:51]} 21. Qd2 {[%emt 0:03:59]} Qxa2 {[%emt 0:03:45]} 22. Nf6+ {[%emt 0:01:15]} exf6 {[%emt 0:02:13]} 23. exf6+ {[%emt 0:00:27]} Kd8 {[%emt 0:00:11]} 24. Re2 {[%emt 0:04:05]} b4 {[%emt 0:07:47]} 25. Qe3 {[%emt 0:01:16]} Qa1+ {[%emt 0:04:16]} 26. Kc2 {[%emt 0:00:17]} Ba4+ {[%emt 0:01:51]} 27. b3 {[%emt 0:00:08]} Bxb3+ {[%emt 0:00:14]} 28. Kxb3 {[%emt 0:00:28]} Qxd1+ {[%emt 0:00:44]} 29. Kc4 {[%emt 0:00:14]} Bd6 {[%emt 0:00:55]} 30. Rd2 {[%emt 0:00:24]} Qf1+ {[%emt 0:00:53]} 31. Rd3 {[%emt 0:02:26]} Re8 {[%emt 0:00:40]} 32. Qd2 {[%emt 0:00:21]} b5+ {[%emt 0:01:36]} 33. Kxb5 {[%emt 0:00:28]} Bxf4 {[%emt 0:00:08]} 0-1

[Event "47th Rilton Cup 2017"]
[Site "?"]
[Date "2018.01.05"]
[Round "9"]
[White "Antipov, Mikhail Al"]
[Black "Kulaots, Kaido"]
[Result "*"]
[ECO "B48"]
[WhiteElo "2588"]
[BlackElo "2591"]
[PlyCount "31"]
[EventDate "2018.??.??"]
[EventType "swiss"]
[EventCountry "SWE"]
[SourceTitle "Stockholm"]
[TimeControl "40/5400+30:1800+30"]
[WhiteClock "1:19:52"]
[BlackClock "1:21:36"]

1. e4 {[%emt 0:01:30]} c5 {[%emt 0:00:00]} 2. Nf3 {[%emt 0:00:06]} e6 {[%emt 0:00:15]} 3. d4 {[%emt 0:00:19]} cxd4 {[%emt 0:00:07]} 4. Nxd4 {[%emt 0:00:04]} Nc6 {[%emt 0:00:28]} 5. Nc3 {[%emt 0:00:11]} Qc7 {[%emt 0:00:17]} 6. Be3 {[%emt 0:00:34]} a6 {[%emt 0:02:35]} 7. Qf3 {[%emt 0:00:29]} Nf6 {[%emt 0:01:54]} 8. O-O-O {[%emt 0:00:11]} Ne5 {[%emt 0:00:20]} 9. Qg3 {[%emt 0:00:08]} b5 {[%emt 0:00:17]} 10. f4 {[%emt 0:00:21]} Neg4 {[%emt 0:00:56]} 11. Bg1 {[%emt 0:00:09]} h5 {[%emt 0:01:44]} 12. Bd3 {[%emt 0:02:54]} Bb7 {[%emt 0:04:56]} 13. e5 {[%emt 0:07:04]} b4 {[%emt 0:02:53]} 14. Na4 {[%emt 0:00:54]} Nd5 {[%emt 0:00:13]} 15. h3 {[%emt 0:00:31]} Nh6 {[%emt 0:00:43]} 16. f5 {[%emt 0:00:59]} *